fUST/lending_fUST_20240813
["ID","MTS","AMOUNT","RATE_DAILY","PERIOD"]
[334728569,1723513848309,-500.0,0.0001454,2]
[334728570,1723513848319,-500.0,0.0001454,2]
[334728571,1723513848328,-500.0,0.0001454,2]
[334728572,1723513848338,-500.0,0.0001454,2]
[334728573,1723513848348,-941.28,0.0001454,2]
[334728574,1723513848358,-560.09,0.0001454,2]
[334728575,1723513848367,-1781.65,0.0001454,2]
[334728576,1723513848377,-1274.07,0.0001454,2]
[334728577,1723513848386,-2842.79,0.0001454,2]
[334728578,1723513848396,-743.7,0.0001454,2]
[334728579,1723513848406,-591.93,0.0001454,2]
[334728580,1723513848418,-600.58,0.0001454,2]
[334728581,1723513848427,-794.63,0.0001454,2]
[334728582,1723513848437,-1375.43,0.0001454,2]
[334728583,1723513848446,-758.15,0.0001454,2]
[334728584,1723513848455,-1262.16,0.0001454,2]
[334728585,1723513848465,-3589.79,0.0001454,2]
[334728586,1723513848474,-905.32,0.0001454,2]
[334728587,1723513848484,-500.0,0.0001454,2]
[334728588,1723513848494,-217.52973724,0.0001454,2]
[334728589,1723513848503,-500.0,0.0001454,2]
[334728590,1723513848513,-658.95,0.0001454,2]
[334728591,1723513848522,-554.49,0.0001454,2]
[334728592,1723513848532,-568.45,0.0001454,2]
[334728593,1723513848542,-665.73,0.0001454,2]
[334728594,1723513848552,-500.0,0.0001454,2]
[334728595,1723513848562,-789.83,0.0001454,2]
[334728596,1723513848571,-500.0,0.0001454,2]
[334728597,1723513848581,-500.0,0.0001454,2]
[334728598,1723513848590,-500.0,0.0001454,2]
[334728599,1723513848599,-500.0,0.0001454,2]
[334728600,1723513848609,-500.0,0.00014541,2]
[334728601,1723513848624,-158.90983671,0.00014541,2]
[334728602,1723513848634,-763.56,0.00014541,2]
[334728603,1723513848643,-524.18,0.00014541,2]
[334728604,1723513848653,-500.0,0.00014541,2]
[334728605,1723513848665,-192.72976493,0.00014541,2]
[334728606,1723513848676,-511.03118536,0.00014541,2]
[334728607,1723513848685,-500.0,0.00014541,2]
[334728608,1723513848694,-506.75701064,0.00014541,2]
[334728609,1723513848705,-500.0,0.00014541,2]
[334728610,1723513848714,-677.18,0.00014541,2]
[334728611,1723513848724,-500.0,0.00014541,2]
[334728612,1723513848734,-263.813295,0.00014541,2]
[334728613,1723513848744,-500.0,0.00014541,2]
[334728614,1723513848754,-263.813295,0.00014541,2]
[334728615,1723513848763,-500.0,0.00014541,2]
[334728616,1723513848773,-500.0,0.00014541,2]
[334728617,1723513848782,-500.0,0.00014541,2]
[334728618,1723513848792,-500.0,0.00014541,2]
[334728619,1723513848801,-500.0,0.00014541,2]
[334728620,1723513848811,-500.0,0.00014541,2]
[334728621,1723513848821,-585.13,0.00014541,2]
[334728622,1723513848831,-579.79,0.00014541,2]
[334728623,1723513848840,-509.21,0.00014541,2]
[334728624,1723513848850,-500.0,0.00014541,2]
[334728625,1723513848860,-500.0,0.00014541,2]
[334728626,1723513848870,-500.0,0.00014541,2]
[334728627,1723513848879,-500.0,0.00014541,2]
[334728628,1723513848889,-882.44,0.00014541,2]
[334728629,1723513848899,-500.0,0.00014541,2]
[334728630,1723513848908,-500.0,0.00014541,2]
[334728631,1723513848919,-500.0,0.00014541,2]
[334728632,1723513848929,-500.0,0.00014541,2]
[334728633,1723513848938,-500.0,0.00014541,2]
[334728634,1723513848948,-500.0,0.00014541,2]
[334728635,1723513848958,-500.0,0.00014541,2]
[334728636,1723513848968,-500.0,0.00014541,2]
[334728637,1723513848978,-621.59,0.00014541,2]
[334728638,1723513848987,-500.0,0.00014541,2]
[334728639,1723513848997,-933.73,0.00014541,2]
[334728640,1723513849006,-912.95,0.00014541,2]
[334728641,1723513849016,-500.0,0.00014541,2]
[334728642,1723513849026,-500.0,0.00014541,2]
[334728643,1723513849035,-500.0,0.00014541,2]
[334728644,1723513849044,-455.939584,0.00014541,2]
[334728645,1723513849056,-500.0,0.00014541,2]
[334728646,1723513849065,-455.939584,0.00014541,2]
[334728647,1723513849075,-509.22,0.00014541,2]
[334728648,1723513849085,-394.208668,0.00014541,2]
[334728649,1723513849095,-151.0,0.00014541,2]
[334728650,1723513849104,-394.208668,0.00014541,2]
[334728651,1723513849114,-151.0,0.00014541,2]
[334728652,1723513849123,-2201.66,0.00014541,2]
[334728653,1723513849133,-441.867282,0.00014541,2]
[334728654,1723513849143,-623.03,0.00014541,2]
[334728655,1723513849153,-441.867282,0.00014541,2]
[334728656,1723513849162,-165.222037,0.00014541,2]
[334728657,1723513849178,-500.180352,0.00014541,2]
[334728658,1723513849188,-1216.27,0.00014541,2]
[334728659,1723513849198,-165.222037,0.00014541,2]
[334728660,1723513849208,-500.180352,0.00014541,2]
[334728661,1723513849218,-1144.93,0.00014541,2]
[334728662,1723513849228,-151.0,0.00014541,2]
[334728663,1723513849237,-732.458265,0.00014541,2]
[334728664,1723513849247,-500.0,0.00014541,2]
[334728665,1723513849258,-732.458265,0.00014541,2]
[334728666,1723513849268,-1718.25,0.00014541,2]
[334728667,1723513849277,-166.110579,0.00014541,2]
[334728668,1723513849287,-1002.31,0.00014541,2]
[334728669,1723513849298,-166.110579,0.00014541,2]
[334728670,1723513849309,-262.711112,0.00014541,2]
[334728671,1723513849318,-262.711112,0.00014541,2]
[334728672,1723513849328,-300.967479,0.00014541,2]
[334728673,1723513849338,-300.967479,0.00014541,2]
[334728674,1723513849347,-500.0,0.00014541,2]
[334728675,1723513849357,-533.05,0.00014541,2]
[334728676,1723513849366,-151.0,0.00014541,2]
[334728677,1723513849376,-151.0,0.00014541,2]
[334728678,1723513849386,-170.534323,0.00014551,2]
[334728679,1723513849396,-170.534323,0.00014551,2]
[334728680,1723513849406,-151.0,0.00014551,2]
[334728681,1723513849417,-151.0,0.00014551,2]
[334728682,1723513849427,-500.0,0.00014551,2]
[334728683,1723513849437,-500.0,0.00014551,2]
[334728684,1723513849447,-500.0,0.00014551,2]
[334728685,1723513849456,-500.0,0.0001456,2]
[334728686,1723513849465,-500.0,0.0001456,2]
[334728687,1723513849475,-500.0,0.0001456,2]
[334728688,1723513849485,-500.0,0.0001456,2]
[334728689,1723513849494,-151.0,0.0001456,2]
[334728690,1723513849504,-306.0,0.00014575,2]
[334728691,1723513849514,-1092.59843641,0.0001469,2]
[334728692,1723513849524,-686.90331654,0.0001469,2]
[334728693,1723513849534,-154.90676766,0.0001469,2]
[334728694,1723513849543,-194.77215095,0.0001469,2]
[334728695,1723513849553,-919.48,0.00014713,2]
[334728696,1723513849563,-500.0,0.00014723,2]
[334728697,1723513849573,-500.0,0.00014723,2]
[334728698,1723513849583,-687.75,0.00014723,2]
[334728699,1723513849592,-500.0,0.00014723,2]
[334728700,1723513849602,-500.0,0.00014723,2]
[334728701,1723513849613,-3632.77,0.00014723,2]
[334728702,1723513849626,-1110.45,0.00014723,2]
[334728703,1723513849636,-965.21,0.00014723,2]
[334728704,1723513849646,-3518.68,0.00014723,2]
[334728705,1723513849656,-547.4,0.00014723,2]
[334728706,1723513849668,-1258.32,0.00014723,2]
[334728707,1723513849678,-500.0,0.00014723,2]
[334728708,1723513849688,-500.0,0.00014723,2]
[334728709,1723513849699,-500.0,0.00014723,2]
[334728710,1723513849833,-500.0,0.00014723,2]
[334728711,1723513849843,-1256.15,0.00014723,2]
[334728712,1723513849852,-500.0,0.00014723,2]
[334728713,1723513849861,-1322.76,0.00014723,2]
[334728714,1723513849871,-500.0,0.00014723,2]
[334728715,1723513849881,-1533.58,0.00014723,2]
[334728716,1723513849891,-841.6,0.00014723,2]
[334728717,1723513849900,-660.87,0.00014723,2]
[334728718,1723513849909,-4240.84,0.00014723,2]
[334728719,1723513849922,-1040.36,0.00014723,2]
[334728720,1723513849932,-1327.48,0.00014723,2]
[334728721,1723513849941,-6346.01,0.00014723,2]
[334728722,1723513849951,-1037.13,0.00014724,2]
[334728723,1723513849961,-6089.46,0.00014724,2]
[334728724,1723513849971,-1190.75,0.00014724,2]
[334728725,1723513849981,-500.0,0.00014724,2]
[334728726,1723513849990,-738.23,0.00014724,2]
[334728727,1723513850000,-263.813295,0.00014767,2]
[334728728,1723513850011,-263.813295,0.00014767,2]
[334728729,1723513850021,-267.9524887,0.00014767,2]
[334728730,1723513850032,-267.9524887,0.00014767,2]
[334728731,1723513850042,-267.9524887,0.00014767,2]
[334728732,1723513850051,-267.9801969,0.00014767,2]
[334728733,1723513850061,-535.7664364,0.00014767,2]
[334728734,1723513850070,-267.9524887,0.00014767,2]
[334728735,1723513850080,-267.9524887,0.00014767,2]
[334728736,1723513850090,-267.9524887,0.00014767,2]
[334728737,1723513850099,-267.9524887,0.00014767,2]
[334728738,1723513850109,-267.9524887,0.00014767,2]
[334728739,1723513850118,-267.9524887,0.00014767,2]
[334728740,1723513850128,-267.9524887,0.00014767,2]
[334728741,1723513850138,-267.9524887,0.00014767,2]
[334728742,1723513850147,-267.9524887,0.00014767,2]
[334728743,1723513850159,-267.9524887,0.00014767,2]
[334728744,1723513850171,-267.9524887,0.00014767,2]
[334728745,1723513850180,-267.9524887,0.00014767,2]
[334728746,1723513850190,-267.9524887,0.00014767,2]
[334728747,1723513850200,-267.9524887,0.00014767,2]
[334728748,1723513850210,-267.9524887,0.00014767,2]
[334728749,1723513850219,-267.9524887,0.00014767,2]
[334728750,1723513850229,-267.9524887,0.00014767,2]
[334728751,1723513850239,-267.9524887,0.00014767,2]
[334728752,1723513850249,-267.9524887,0.00014767,2]
[334728753,1723513850258,-267.9524887,0.00014767,2]
[334728754,1723513850267,-267.9524887,0.00014767,2]
[334728755,1723513850276,-267.9524887,0.00014767,2]
[334728756,1723513850286,-500.0,0.00014805,2]
[334728757,1723513850295,-695.65,0.00014805,2]
[334728758,1723513850304,-500.0,0.00014805,2]
[334728759,1723513850314,-500.0,0.00014805,2]
[334728760,1723513850324,-910.07,0.00014805,2]
[334728761,1723513850333,-500.0,0.00014805,2]
[334728762,1723513850343,-500.0,0.00014805,2]
[334728763,1723513850353,-500.0,0.00014805,2]
[334728764,1723513850363,-1230.92,0.00014805,2]
[334728765,1723513850372,-500.0,0.00014805,2]
[334728766,1723513850381,-500.0,0.00014805,2]
[334728767,1723513850390,-500.0,0.00014805,2]
[334728768,1723513850399,-500.0,0.00014805,2]
[334728769,1723513850408,-806.68,0.00014805,2]
[334728770,1723513850419,-1610.36,0.00014805,2]
[334728771,1723513850428,-566.52,0.00014814,2]
[334728772,1723513850437,-500.0,0.00014814,2]
[334728773,1723513850446,-587.77,0.00014814,2]
[334728774,1723513850456,-500.0,0.00014814,2]
[334728775,1723513850465,-613.5,0.00014814,2]
[334728776,1723513850475,-500.0,0.00014814,2]
[334728777,1723513850484,-734.72,0.00014814,2]
[334728778,1723513850493,-500.0,0.00014814,2]
[334728779,1723513850502,-500.0,0.00014814,2]
[334728780,1723513850511,-151.0,0.00014814,2]
[334728781,1723513850521,-574.28,0.00014814,2]
[334728782,1723513850530,-500.0,0.00014814,2]
[334728783,1723513850539,-2311.99,0.00014814,2]
[334728784,1723513850548,-500.0,0.00014814,2]
[334728785,1723513850558,-3244.11,0.00014814,2]
[334728786,1723513850569,-810.85,0.00014814,2]
[334728787,1723513850579,-331.47531455,0.00014814,2]
[334728788,1723513850588,-500.0,0.00014814,2]
[334728789,1723513850599,-500.0,0.00014814,2]
[334728790,1723513850612,-839.5,0.00014814,2]
[334728791,1723513850627,-1024.89,0.00014814,2]
[334728792,1723513850637,-2206.56,0.00014814,2]
[334728793,1723513850646,-500.0,0.00014814,2]
[334728794,1723513850655,-500.0,0.00014814,2]
[334728795,1723513850668,-500.0,0.00014814,2]
[334728796,1723513850677,-1332.39,0.00014814,2]
[334728797,1723513850685,-1119.42,0.00014814,2]
[334728798,1723513850696,-455.939584,0.00014814,2]
[334728799,1723513850706,-953.01,0.00014814,2]
[334728800,1723513850715,-455.939584,0.00014814,2]
[334728801,1723513850725,-500.0,0.00014814,2]
[334728802,1723513850735,-184.67368875,0.00014814,2]
[334728803,1723513850744,-500.0,0.00014814,2]
[334728804,1723513850754,-500.0,0.00014814,2]
[334728805,1723513850764,-941.28,0.00014814,2]
[334728806,1723513850773,-394.208668,0.00014814,2]
[334728807,1723513850783,-560.09,0.00014814,2]
[334728808,1723513850791,-151.0,0.00014814,2]
[334728809,1723513850801,-394.208668,0.00014814,2]
[334728810,1723513850810,-151.0,0.00014814,2]
[334728811,1723513850819,-441.867282,0.00014814,2]
[334728812,1723513850829,-1781.65,0.00014814,2]
[334728813,1723513850842,-441.867282,0.00014814,2]
[334728814,1723513850855,-1274.07,0.00014814,2]
[334728815,1723513850864,-2842.79,0.00014814,2]
[334728816,1723513850874,-165.222037,0.00014814,2]
[334728817,1723513850885,-500.180352,0.00014814,2]
[334728818,1723513850897,-165.222037,0.00014814,2]
[334728819,1723513850908,-500.180352,0.00014814,2]
[334728820,1723513850922,-743.7,0.00014814,2]
[334728821,1723513850932,-591.93,0.00014814,2]
[334728822,1723513850943,-600.58,0.00014814,2]
[334728823,1723513850953,-794.63,0.00014814,2]
[334728824,1723513850962,-1375.43,0.00014814,2]
[334728825,1723513850971,-151.0,0.00014814,2]
[334728826,1723513850980,-758.15,0.00014814,2]
[334728827,1723513850990,-732.458265,0.00014814,2]
[334728828,1723513850999,-732.458265,0.00014814,2]
[334728829,1723513851008,-1262.16,0.00014814,2]
[334728830,1723513851020,-3589.79,0.00014814,2]
[334728831,1723513851030,-905.32,0.00014814,2]
[334728832,1723513851041,-166.110579,0.00014814,2]
[334728833,1723513851051,-166.110579,0.00014814,2]
[334728834,1723513851061,-500.0,0.00014814,2]
[334728835,1723513851071,-262.711112,0.00014814,2]
[334728836,1723513851082,-500.0,0.00014814,2]
[334728837,1723513851093,-262.711112,0.00014814,2]
[334728838,1723513851105,-658.95,0.00014814,2]
[334728839,1723513851116,-300.967479,0.00014814,2]
[334728840,1723513851126,-300.967479,0.00014814,2]
[334728841,1723513851136,-554.49,0.00014814,2]
[334728842,1723513851146,-568.45,0.00014814,2]
[334728843,1723513851155,-665.73,0.00014814,2]
[334728844,1723513851165,-500.0,0.00014814,2]
[334728845,1723513851174,-789.83,0.00014814,2]
[334728846,1723513851183,-151.0,0.00014814,2]
[334728847,1723513851192,-500.0,0.00014814,2]
[334728848,1723513851201,-151.0,0.00014814,2]
[334728849,1723513851210,-500.0,0.00014814,2]
[334728850,1723513851220,-532.94554107,0.00014814,2]
[334728851,1723513851231,-500.0,0.00014814,2]
[334728852,1723513851241,-500.0,0.00014815,2]
[334728853,1723513851251,-763.56,0.00014815,2]
[334728854,1723513851261,-524.18,0.00014815,2]
[334728855,1723513851270,-500.0,0.00014815,2]
[334728856,1723513851279,-151.0,0.00014815,2]
[334728857,1723513851288,-500.0,0.00014815,2]
[334728858,1723513851298,-500.0,0.00014815,2]
[334728859,1723513851307,-677.18,0.00014815,2]
[334728860,1723513851316,-170.534323,0.00014815,2]
[334728861,1723513851325,-170.534323,0.00014815,2]
[334728862,1723513851334,-151.0,0.00014815,2]
[334728863,1723513851343,-151.0,0.00014815,2]
[334728864,1723513851353,-500.0,0.00014815,2]
[334728865,1723513851362,-500.0,0.00014815,2]
[334728866,1723513851372,-500.0,0.00014815,2]
[334728867,1723513851381,-500.0,0.00014815,2]
[334728868,1723513851391,-500.0,0.00014815,2]
[334728869,1723513851401,-500.0,0.00014815,2]
[334728870,1723513851412,-500.0,0.00014815,2]
[334728871,1723513851424,-403.78973464,0.00014815,2]
[334728872,1723513851435,-585.13,0.00014815,2]
[334728873,1723513851446,-579.79,0.00014815,2]
[334728874,1723513851456,-509.21,0.00014815,2]
[334728875,1723513851465,-500.0,0.00014815,2]
[334728876,1723513851475,-500.0,0.00014815,2]
[334728877,1723513851484,-500.0,0.00014815,2]
[334728878,1723513851493,-500.0,0.00014815,2]
[334728879,1723513851502,-882.44,0.00014815,2]
[334728880,1723513851513,-500.0,0.00014815,2]
[334728881,1723513851523,-500.0,0.00014815,2]
[334728882,1723513851533,-500.0,0.00014815,2]
[334728883,1723513851543,-500.0,0.00014815,2]
[334728884,1723513851553,-500.0,0.00014815,2]
[334728885,1723513851563,-500.0,0.00014815,2]
[334728886,1723513851573,-500.0,0.00014815,2]
[334728887,1723513851582,-500.0,0.00014815,2]
[334728888,1723513851592,-621.59,0.00014815,2]
[334728889,1723513851602,-500.0,0.00014815,2]
[334728890,1723513851613,-933.73,0.00014815,2]
[334728891,1723513851626,-912.95,0.00014815,2]
[334728892,1723513851635,-500.0,0.00014815,2]
[334728893,1723513851645,-500.0,0.00014815,2]
[334728894,1723513851654,-500.0,0.00014815,2]
[334728895,1723513851665,-500.0,0.00014815,2]
[334728896,1723513851674,-509.22,0.00014815,2]
[334728897,1723513851683,-2201.66,0.00014815,2]
[334728898,1723513851693,-623.03,0.00014815,2]
[334728899,1723513851702,-1216.27,0.00014815,2]
[334728900,1723513851712,-1144.93,0.00014815,2]
[334728901,1723513851721,-500.0,0.00014815,2]
[334728902,1723513851730,-1718.25,0.00014815,2]
[334728903,1723513851739,-1002.31,0.00014815,2]
[334728904,1723513851748,-500.0,0.00014815,2]
[334728905,1723513851758,-533.05,0.00014815,2]
[334728906,1723513851767,-500.0,0.00014825,2]
[334728907,1723513851776,-500.0,0.00014825,2]
[334728908,1723513851786,-500.0,0.00014825,2]
[334728909,1723513851796,-500.0,0.00014834,2]
[334728910,1723513851805,-500.0,0.00014834,2]
[334728911,1723513851814,-500.0,0.00014834,2]
[334728912,1723513851823,-500.0,0.00014834,2]
[334728913,1723513851833,-500.0,0.00014834,2]
[334728914,1723513851842,-263.813295,0.00014834,2]
[334728915,1723513851851,-263.813295,0.00014834,2]
[334728916,1723513851861,-151.0,0.00014834,2]
[334728917,1723513851870,-153.0,0.00014959,2]
[334728918,1723513851880,-153.0,0.00014959,2]
[334728919,1723513851889,-153.0,0.00014959,2]
[334728920,1723513851899,-153.0,0.00014959,2]
[334728921,1723513851908,-153.0,0.00014959,2]
[334728922,1723513851919,-280.823,0.00014972,2]
[334728923,1723513851928,-639.051,0.00014972,2]
[334728924,1723513851937,-1413.0,0.00014972,2]
[334728925,1723513851947,-253.422,0.00014972,2]
[334728926,1723513851956,-150.398,0.00014972,2]
[334728927,1723513851966,-919.48,0.00014987,2]
[334728928,1723513851976,-500.0,0.00014997,2]
[334728929,1723513851985,-222.76847662,0.00014997,2]
[334728930,1723513851995,-687.75,0.00014997,2]
[334728931,1723513852004,-500.0,0.00014997,2]
[334728932,1723513852013,-500.0,0.00014997,2]
[334728933,1723513852023,-3632.77,0.00014997,2]
[334728934,1723513852032,-1110.45,0.00014997,2]
[334728935,1723513852042,-965.21,0.00014997,2]
[334728936,1723513852051,-3518.68,0.00014997,2]
[334728937,1723513852061,-547.4,0.00014997,2]
[334728938,1723513852070,-1258.32,0.00014997,2]
[334728939,1723513852080,-500.0,0.00014997,2]
[334728940,1723513852089,-500.0,0.00014997,2]
[334728941,1723513852098,-500.0,0.00014997,2]
[334728942,1723513852108,-500.0,0.00014997,2]
[334728943,1723513852117,-1256.15,0.00014997,2]
[334728944,1723513852126,-500.0,0.00014997,2]
[334728945,1723513852135,-1322.76,0.00014997,2]
[334728946,1723513852144,-500.0,0.00014997,2]
[334728947,1723513852154,-1533.58,0.00014997,2]
[334728948,1723513852163,-841.6,0.00014997,2]
[334728949,1723513852175,-660.87,0.00014997,2]
[334728950,1723513852185,-4240.84,0.00014997,2]
[334728951,1723513852195,-1040.36,0.00014997,2]
[334728952,1723513852204,-1327.48,0.00014997,2]
[334728953,1723513852214,-6346.01,0.00014997,2]
[334728954,1723513852223,-170.534323,0.00014998,2]
[334728955,1723513852233,-170.534323,0.00014998,2]
[334728956,1723513852243,-151.0,0.00014998,2]
[334728957,1723513852252,-185.376156,0.00014998,2]
[334728958,1723513852261,-1037.13,0.00014998,2]
[334728959,1723513852270,-6089.46,0.00014998,2]
[334728960,1723513852280,-1190.75,0.00014998,2]
[334728961,1723513852289,-500.0,0.00014998,2]
[334728962,1723513852298,-738.23,0.00014998,2]
[334728963,1723513852307,-1109.97237803,0.00015,2]
[334728964,1723513852318,-813.18375468,0.00015,2]
[334728965,1723513852328,-492.93499197,0.00015,2]
[334728966,1723513852339,-2851.27810416,0.00015,2]
[334728967,1723513852347,-336.53868747,0.00015,2]
[334728968,1723513852357,-817.03180288,0.00015,2]
[334728969,1723513852366,-151.0,0.00015,2]
[334728970,1723513852375,-455.939584,0.00015,2]
[334728971,1723513852385,-455.939584,0.00015,2]
[334728972,1723513852394,-394.208668,0.00015,2]
[334728973,1723513852403,-151.0,0.00015,2]
[334728974,1723513852412,-394.208668,0.00015,2]
[334728975,1723513852425,-151.0,0.00015,2]
[334728976,1723513852435,-441.867282,0.00015,2]
[334728977,1723513852444,-441.867282,0.00015,2]
[334728978,1723513852454,-165.222037,0.00015,2]
[334728979,1723513852463,-500.180352,0.00015,2]
[334728980,1723513852473,-165.222037,0.00015,2]
[334728981,1723513852484,-500.180352,0.00015,2]
[334728982,1723513852494,-151.0,0.00015,2]
[334728983,1723513852504,-732.458265,0.00015,2]
[334728984,1723513852513,-732.458265,0.00015,2]
[334728985,1723513852523,-166.110579,0.00015,2]
[334728986,1723513852532,-166.110579,0.00015,2]
[334728987,1723513852649,-262.711112,0.00015,2]
[334728988,1723513852659,-262.711112,0.00015,2]
[334728989,1723513852670,-300.967479,0.00015,2]
[334728990,1723513852679,-300.967479,0.00015,2]
[334728991,1723513852690,-151.0,0.00015,2]
[334728992,1723513852699,-218.836355,0.00015,2]
[334728993,1723513852708,-200.0,0.00015073,2]
[334728994,1723513852718,-200.0,0.00015073,2]
[334728995,1723513852727,-200.0,0.00015073,2]
[334728996,1723513852740,-200.0,0.00015073,2]
[334728997,1723513852750,-200.0,0.00015073,2]
[334728998,1723513852759,-500.0,0.00015079,2]
[334728999,1723513852770,-695.65,0.00015079,2]
[334729000,1723513852781,-507.18228602,0.00015079,2]
[334729001,1723513852793,-200.34955745,0.00015079,2]
[334729002,1723513852804,-910.07,0.00015079,2]
[334729003,1723513852815,-500.0,0.00015079,2]
[334729004,1723513852826,-506.80610397,0.00015079,2]
[334729005,1723513852836,-500.0,0.00015079,2]
[334729006,1723513852847,-1230.92,0.00015079,2]
[334729007,1723513852857,-500.0,0.00015079,2]
[334729008,1723513852867,-500.0,0.00015079,2]
[334729009,1723513852877,-500.0,0.00015079,2]
[334729010,1723513852887,-558.13731337,0.00015079,2]
[334729011,1723513852896,-806.68,0.00015079,2]
[334729012,1723513852905,-1610.36,0.00015079,2]
[334729013,1723513852915,-566.52,0.00015088,2]
[334729014,1723513852933,-500.0,0.00015088,2]
[334729015,1723513852942,-587.77,0.00015088,2]
[334729016,1723513852951,-500.0,0.00015088,2]
[334729017,1723513852960,-613.5,0.00015088,2]
[334729018,1723513852969,-500.0,0.00015088,2]
[334729019,1723513852978,-734.72,0.00015088,2]
[334729020,1723513852987,-500.0,0.00015088,2]
[334729021,1723513852996,-500.0,0.00015088,2]
[334729022,1723513853005,-574.28,0.00015088,2]
[334729023,1723513853014,-500.0,0.00015088,2]
[334729024,1723513853024,-2311.99,0.00015088,2]
[334729025,1723513853033,-500.0,0.00015088,2]
[334729026,1723513853042,-3244.11,0.00015088,2]
[334729027,1723513853051,-810.85,0.00015088,2]
[334729028,1723513853062,-500.0,0.00015088,2]
[334729029,1723513853071,-500.0,0.00015088,2]
[334729030,1723513853081,-839.5,0.00015088,2]
[334729031,1723513853090,-1024.89,0.00015088,2]
[334729032,1723513853100,-2206.56,0.00015088,2]
[334729033,1723513853109,-500.0,0.00015088,2]
[334729034,1723513853118,-500.0,0.00015088,2]
[334729035,1723513853128,-500.0,0.00015088,2]
[334729036,1723513853139,-1332.39,0.00015088,2]
[334729037,1723513853150,-1119.42,0.00015088,2]
[334729038,1723513853159,-953.01,0.00015088,2]
[334729039,1723513853171,-500.0,0.00015088,2]
[334729040,1723513853181,-500.0,0.00015088,2]
[334729041,1723513853191,-500.0,0.00015088,2]
[334729042,1723513853200,-941.28,0.00015088,2]
[334729043,1723513853210,-560.09,0.00015088,2]
[334729044,1723513853220,-1781.65,0.00015088,2]
[334729045,1723513853229,-1274.07,0.00015088,2]
[334729046,1723513853239,-2842.79,0.00015088,2]
[334729047,1723513853249,-743.7,0.00015088,2]
[334729048,1723513853261,-591.93,0.00015088,2]
[334729049,1723513853271,-600.58,0.00015088,2]
[334729050,1723513853282,-794.63,0.00015088,2]
[334729051,1723513853292,-1375.43,0.00015088,2]
[334729052,1723513853304,-758.15,0.00015088,2]
[334729053,1723513853314,-1262.16,0.00015088,2]
[334729054,1723513853323,-3589.79,0.00015088,2]
[334729055,1723513853333,-905.32,0.00015088,2]
[334729056,1723513853343,-500.0,0.00015088,2]
[334729057,1723513853353,-500.0,0.00015088,2]
[334729058,1723513853364,-658.95,0.00015088,2]
[334729059,1723513853374,-554.49,0.00015088,2]
[334729060,1723513853383,-568.45,0.00015088,2]
[334729061,1723513853393,-665.73,0.00015088,2]
[334729062,1723513853403,-500.0,0.00015088,2]
[334729063,1723513853412,-789.83,0.00015088,2]
[334729064,1723513853423,-359.4979327,0.00015088,2]
[334729065,1723513853432,-500.0,0.00015088,2]
[334729066,1723513853442,-500.0,0.00015088,2]
[334729067,1723513853452,-500.0,0.00015089,2]
[334729068,1723513853461,-763.56,0.00015089,2]